[Event "Liberia Championship 2023"]
[Site "Monrovia"]
[Date "2024.01.24"]
[Round "9.8"]
[White "Miller Moore"]
[Black "Daniel Kolliemelen"]
[Result "1/2-1/2"]
[ECO "C01"]
[WhiteElo "1677"]
[BlackElo "1809"]
[Annotator "NA RC"]
[PlyCount "158"]
[EventDate "2024.01.16"]
[EventType "swiss"]
[EventCountry "LBR"]
[SourceTitle "playchess.com"]
[Source "ChessBase"]
[SourceQuality "1"]
[TimeControl "40/5400+30:1800+30"]

1. e4 {[%emt 0:00:30]} e6 {[%emt 0:12:27]} 2. Nc3 {[%emt 0:00:37]} c6 {[%emt 0:00:13]} 3. Nf3 {[%emt 0:00:42]} d5 {[%emt 0:00:41]} 4. exd5 {[%emt 0:02:14]} exd5 {[%emt 0:00:35]} 5. d4 {[%emt 0:00:20]} Bd6 {[%emt 0:00:18]} 6. Be3 {[%emt 0:01:56]} Ne7 {[%emt 0:00:26]} 7. Bd3 {[%emt 0:00:19]} Bf5 {[%emt 0:00:19]} 8. Be2 {[%emt 0:00:46]} h6 {[%emt 0:00:58]} 9. a3 {[%emt 0:00:22]} b5 {[%emt 0:00:55]} 10. Na2 {[%emt 0:01:43]} Nd7 {[%emt 0:01:10]} 11. O-O {[%emt 0:03:21]} O-O {[%emt 0:00:12]} 12. Kh1 {[%emt 0:00:10]} Nb6 {[%emt 0:02:00]} 13. Nd2 {[%emt 0:01:11]} Qc7 {[%emt 0:00:15]} 14. g3 {[%emt 0:03:31]} Rfe8 {[%emt 0:04:37]} 15. Nc1 {[%emt 0:03:55]} Bh3 {[%emt 0:01:01]} 16. Rg1 {[%emt 0:00:15]} Nf5 {[%emt 0:00:58]} 17. Bd3 {[%emt 0:04:48]} Nxe3 {[%emt 0:10:37]} 18. fxe3 {[%emt 0:01:15]} Bd7 {[%emt 0:00:43]} 19. Qf3 {[%emt 0:00:50]} Nc4 {[%emt 0:02:25]} 20. Nxc4 {[%emt 0:01:35]} bxc4 {[%emt 0:01:37]} 21. Bf1 {[%emt 0:01:33]} Be7 {[%emt 0:00:41]} 22. Bg2 {[%emt 0:00:43]} Bg5 {[%emt 0:01:22]} 23. Re1 {[%emt 0:01:08]} f5 {[%emt 0:04:26]} 24. c3 {[%emt 0:04:44]} Be7 {[%emt 0:01:32]} 25. Ne2 {[%emt 0:00:56]} g6 {[%emt 0:00:18]} 26. Nf4 {[%emt 0:01:46]} Kg7 {[%emt 0:01:57]} 27. h4 {[%emt 0:00:32]} Rab8 {[%emt 0:00:34]} 28. Re2 {[%emt 0:00:17]} h5 {[%emt 0:06:43]} 29. Rf1 {[%emt 0:04:31]} Rf8 {[%emt 0:00:57]} 30. Qf2 {[%emt 0:00:35]} Rbe8 {[%emt 0:02:21]} 31. Bf3 {[%emt 0:00:20]} Bd6 {[%emt 0:42:42]} 32. Ree1 {[%emt 0:01:19]} Re7 {[%emt 0:00:00]} 33. Bd1 {[%emt 0:01:07]} Be8 {[%emt 0:00:00]} 34. Kg2 {[%emt 0:00:50]} Bf7 {[%emt 0:00:00]} 35. Bc2 {[%emt 0:00:58]} Qd7 {[%emt 0:00:00]} 36. Re2 {[%emt 0:01:42]} Rb8 {[%emt 0:00:00]} 37. Bb1 {[%emt 0:01:14]} Qe8 {[%emt 0:00:00]} 38. Nxh5+ {[%emt 0:00:37]} gxh5 {[%emt 0:00:00]} 39. Qxf5 {[%emt 0:00:12]} Re4 {[%emt 0:00:00]} 40. Qf6+ {[%emt 0:01:02]} Kg8 {[%emt 0:00:00]} 41. Rf5 {[%emt 0:02:18]} Qe6 {[%emt 0:35:00]} 42. Rg5+ {[%emt 1:22:46]} Kf8 {[%emt 0:00:30]} 43. Qg7+ {[%emt 0:00:30]} Ke8 {[%emt 0:00:30]} 44. Rf2 {[%emt 0:00:30]} Rb7 {[%emt 0:00:00]} 45. Qh8+ {[%emt 0:00:00]} Bf8 {[%emt 0:00:00]} 46. Bxe4 {[%emt 0:00:00]} Qxe4+ {[%emt 0:01:30]} 47. Kh2 {[%emt 0:01:30]} Re7 {[%emt 0:00:00]} 48. Rgf5 {[%emt 0:00:00]} Qxe3 {[%emt 0:00:00]} 49. Qf6 {[%emt 0:00:00]} Qh6 {[%emt 0:01:30]} 50. Qg5 {[%emt 0:01:30]} Qxg5 {[%emt 0:00:00]} 51. hxg5 {[%emt 0:00:00]} Bg7 {[%emt 0:00:00]} 52. Kg2 {[%emt 0:00:00]} Bg6 {[%emt 0:00:00]} 53. R5f4 {[%emt 0:00:00]} Re6 {[%emt 0:02:00]} 54. Kh3 {[%emt 0:00:00]} Ke7 {[%emt 0:00:30]} 55. Kh4 {[%emt 0:02:30]} a5 {[%emt 0:00:00]} 56. a4 {[%emt 0:00:00]} Re4 {[%emt 0:00:00]} 57. Kh3 {[%emt 0:00:00]} Re6 {[%emt 0:01:30]} 58. Kh4 {[%emt 0:01:30]} Re4 {[%emt 0:00:00]} 59. Kh3 {[%emt 0:00:00]} Re6 {[%emt 0:00:00]} 60. Kg2 {[%emt 0:00:00]} Kd6 {[%emt 0:00:00]} 61. Kh3 {[%emt 0:00:00]} Ke7 {[%emt 0:00:00]} 62. Kh4 {[%emt 0:00:00]} Re4 {[%emt 0:00:00]} 63. Kh3 $1 {[%emt 0:00:00] [#]} Re1 {[%emt 0:03:00]} ({Black should try} 63... Kd6 $1 $19 64. Rxe4 dxe4) 64. Rh2 {[%emt 0:03:00]} Kd6 $2 {[%emt 0:00:00]} 65. Rhf2 {[%emt 0:00:00]} Ke7 $2 {[%emt 0:00:00]} ({Black should play} 65... c5 $19 66. Rf6+ Bxf6 67. Rxf6+ Re6 68. Rxe6+ Kxe6 69. dxc5 Kd7 (69... Ke5 $2 70. Kg2 $19)) 66. Rh2 $1 {[%emt 0:00:00]} Re3 {[%emt 0:00:00]} (66... c5 $19 67. dxc5 Be5) 67. Rhf2 {[%emt 0:00:00]} Re6 {[%emt 0:00:00]} 68. Kh4 {[%emt 0:00:00]} Re4 {[%emt 0:00:00]} 69. Kh3 {[%emt 0:00:00]} Re6 {[%emt 0:00:00]} 70. Kh2 {[%emt 0:00:00]} Re1 {[%emt 0:00:00]} 71. Kh3 {[%emt 0:00:00]} Re3 {[%emt 0:00:00]} 72. Kh4 {[%emt 0:00:00]} Re1 $2 {[%emt 0:00:00]} ({Better is} 72... Kd6 $19 73. g4 hxg4 74. Kxg4 Re6) 73. Kh3 $1 {[%emt 0:00:00]} Re3 {[%emt 0:00:00]} 74. Kh4 {[%emt 0:00:00]} Re4 {[%emt 0:00:00]} 75. Kh3 {[%emt 0:00:00]} Re1 {[%emt 0:00:00]} 76. Rh2 {[%emt 0:00:00]} Kd6 {[%emt 0:00:00]} 77. Rhf2 {[%emt 0:00:00]} Ke7 $11 {[%emt 0:00:00]} 78. Rh2 {[%emt 0:00:00]} Re3 {[%emt 0:00:00]} 79. Rhf2 {[%emt 0:00:00]} Re6 {[%emt 0:00:00]} 1/2-1/2

[Event "Liberia Championship 2023"]
[Site "Monrovia"]
[Date "2024.01.24"]
[Round "9.9"]
[White "Jacob, Jallah"]
[Black "Prince Jegbadai"]
[Result "1-0"]
[ECO "A20"]
[WhiteElo "1781"]
[BlackElo "1627"]
[Annotator "NA RC"]
[PlyCount "69"]
[EventDate "2024.01.16"]
[EventType "swiss"]
[EventCountry "LBR"]
[SourceTitle "playchess.com"]
[Source "ChessBase"]
[SourceQuality "1"]
[TimeControl "40/5400+30:1800+30"]

1. c4 {[%emt 0:46:24]} e5 {[%emt 0:00:28]} 2. g3 {[%emt 0:00:12]} Bc5 {[%emt 0:00:18]} 3. Bg2 {[%emt 0:00:02]} d6 {[%emt 1:31:14]} 4. Nc3 {[%emt 0:45:52]} a6 {[%emt 0:00:30]} 5. a3 {[%emt 0:00:30]} Nf6 {[%emt 0:00:30]} 6. Nf3 {[%emt 0:00:30]} Nc6 {[%emt 0:00:30]} 7. O-O {[%emt 0:00:30]} O-O {[%emt 0:00:00]} 8. h3 {[%emt 0:00:00]} Bd7 {[%emt 0:00:00]} 9. e3 {[%emt 0:00:00]} h6 {[%emt 0:00:00]} 10. d4 {[%emt 0:00:00]} exd4 {[%emt 0:02:00]} 11. exd4 {[%emt 0:02:00]} Ba7 {[%emt 0:00:00]} 12. Re1 {[%emt 0:00:00]} Ne7 {[%emt 0:00:00]} 13. Nh2 {[%emt 0:00:00]} Ng6 {[%emt 0:00:00]} 14. Bxb7 {[%emt 0:00:00]} Rb8 {[%emt 0:00:00]} 15. Bg2 {[%emt 0:00:00]} Qc8 {[%emt 0:00:00]} 16. h4 {[%emt 0:00:00]} Ng4 {[%emt 0:00:00]} 17. h5 {[%emt 0:00:00]} Nh8 {[%emt 0:00:00]} 18. Nd5 {[%emt 0:00:00]} Re8 {[%emt 0:00:00]} 19. Rxe8+ {[%emt 0:00:00]} Qxe8 {[%emt 0:04:30]} 20. Nxg4 {[%emt 0:04:30]} c6 {[%emt 0:00:00]} 21. Ndf6+ {[%emt 0:00:00]} gxf6 {[%emt 0:01:00]} 22. Nxf6+ {[%emt 0:01:00]} Kf8 {[%emt 0:00:00]} 23. Bxh6+ {[%emt 0:00:00]} Ke7 {[%emt 0:00:00]} 24. Nxe8 {[%emt 0:00:00]} Rxe8 {[%emt 0:00:00]} 25. Qa4 {[%emt 0:00:00]} Rc8 {[%emt 0:00:00]} 26. Re1+ {[%emt 0:00:00]} Kd8 {[%emt 0:02:30]} 27. d5 {[%emt 0:00:00]} cxd5 {[%emt 0:00:00]} 28. Qa5+ {[%emt 0:00:00]} Rc7 {[%emt 0:00:00]} 29. Bxd5 {[%emt 0:00:00]} Be6 {[%emt 0:00:00]} 30. Bxe6 {[%emt 0:00:00]} fxe6 {[%emt 0:02:00]} 31. Rxe6 {[%emt 0:00:00]} Kd7 {[%emt 0:00:00]} 32. Qd5 {[%emt 0:00:00]} Nf7 {[%emt 0:00:00]} 33. b4 {[%emt 0:00:00]} Rc6 {[%emt 0:00:00]} 34. Bf8 {[%emt 0:00:00]} Bb8 {[%emt 0:00:00]} 35. Re7+ {[%emt 0:00:00]} 1-0

[Event "Liberia Championship 2023"]
[Site "Monrovia"]
[Date "2024.01.25"]
[Round "10.1"]
[White "Thomas, Saah"]
[Black "Anthony Waylea, Jr."]
[Result "1-0"]
[ECO "C56"]
[WhiteElo "1889"]
[BlackElo "1939"]
[Annotator "RC"]
[PlyCount "113"]
[EventDate "2024.01.16"]
[EventType "swiss"]
[EventCountry "LBR"]
[SourceTitle "playchess.com"]
[Source "ChessBase"]
[SourceQuality "1"]
[TimeControl "40/5400+30:1800+30"]

1. e4 {[%emt 0:00:04]} Nc6 {[%emt 0:45:22]} 2. Bc4 {[%emt 0:00:37]} e5 {[%emt 0:00:15]} 3. Nf3 {[%emt 0:00:09]} Nf6 {[%emt 0:00:06]} 4. d4 {[%emt 0:00:19]} exd4 {[%emt 0:00:09]} 5. O-O {[%emt 0:00:24]} Bc5 {[%emt 0:00:21]} 6. e5 {[%emt 0:00:07]} d5 {[%emt 0:00:06]} 7. Bb5 {[%emt 0:01:26]} Ne4 {[%emt 0:00:06]} 8. Nxd4 {[%emt 0:00:21]} Bd7 {[%emt 0:00:07]} 9. e6 {[%emt 0:02:42]} fxe6 {[%emt 0:00:50]} 10. Nb3 {[%emt 0:00:42]} Bb6 {[%emt 0:03:25]} 11. Nc3 {[%emt 0:02:35]} Nxf2 {[%emt 0:00:35]} 12. Qe2 {[%emt 0:02:35]} O-O {[%emt 0:04:29]} 13. Be3 {[%emt 0:00:11]} Bxe3 {[%emt 0:00:20]} 14. Qxe3 {[%emt 0:00:09]} Ng4 {[%emt 0:00:20]} 15. Rxf8+ {[%emt 0:00:44]} Qxf8 {[%emt 0:00:21]} 16. Qg3 {[%emt 0:00:04]} Nge5 {[%emt 0:01:03]} 17. Bxc6 {[%emt 0:00:15]} Nxc6 {[%emt 0:01:05]} 18. Qxc7 {[%emt 0:00:02]} Qc8 {[%emt 0:01:04]} 19. Qd6 {[%emt 0:00:06]} Be8 {[%emt 0:09:42]} 20. Nc5 {[%emt 0:01:59]} Bf7 {[%emt 0:00:34]} 21. Re1 {[%emt 0:00:26]} Qd8 {[%emt 0:01:36]} 22. Qg3 {[%emt 0:01:01]} e5 {[%emt 0:00:59]} 23. Kh1 {[%emt 0:00:37]} b6 {[%emt 0:01:59]} 24. Nd3 {[%emt 0:01:02]} e4 {[%emt 0:01:20]} 25. Nf2 {[%emt 0:00:20]} Qe7 {[%emt 0:02:21]} 26. Ng4 {[%emt 0:00:30]} Kh8 {[%emt 0:01:13]} 27. Rf1 {[%emt 0:00:06]} Re8 {[%emt 0:01:23]} 28. Ne3 {[%emt 0:01:44]} d4 {[%emt 0:03:03]} 29. Nf5 {[%emt 0:00:04]} Qf6 {[%emt 0:00:26]} 30. Nb5 {[%emt 0:01:41]} Bg8 {[%emt 0:05:54]} 31. Nbd6 {[%emt 0:01:21]} Re5 {[%emt 0:00:40]} 32. Rf4 {[%emt 0:00:32]} g6 {[%emt 0:00:44]} 33. Nxe4 {[%emt 1:22:05]} Rxe4 {[%emt 0:03:27]} 34. Rxe4 {[%emt 0:00:00]} Qxf5 {[%emt 0:00:10]} 35. Re1 {[%emt 0:00:00]} Qxc2 {[%emt 0:00:29]} 36. Qf4 {[%emt 0:00:00]} Qf5 {[%emt 0:00:47]} 37. Qd6 {[%emt 0:00:00]} Bd5 {[%emt 0:02:52]} 38. Kg1 {[%emt 0:00:00]} d3 {[%emt 0:02:37]} 39. Qa3 {[%emt 0:00:00]} Bf7 {[%emt 0:05:04]} 40. Qc3+ {[%emt 0:00:00]} Kg8 {[%emt 0:00:00]} 41. Qxc6 {[%emt 0:00:00]} d2 {[%emt 0:03:45]} 42. Rd1 {[%emt 0:00:00]} Qe5 {[%emt 0:00:50]} 43. Qc8+ {[%emt 0:00:00]} Be8 {[%emt 0:01:55]} 44. Qc3 {[%emt 0:00:00]} Qxc3 {[%emt 0:03:43]} 45. bxc3 {[%emt 0:00:00]} b5 {[%emt 0:01:01]} 46. Rxd2 {[%emt 0:00:00]} a5 {[%emt 0:00:49]} 47. Rf2 {[%emt 0:00:00]} Bf7 {[%emt 0:01:29]} 48. a3 {[%emt 0:00:00]} Kf8 {[%emt 0:01:01]} 49. Kf1 {[%emt 0:00:00]} a4 {[%emt 0:01:16]} 50. Ke2 {[%emt 0:00:00]} Ke7 {[%emt 0:00:47]} 51. Kd3 {[%emt 0:00:00]} Bc4+ {[%emt 0:00:45]} 52. Kd4 {[%emt 0:00:00]} Ke6 {[%emt 0:00:39]} 53. g4 {[%emt 0:00:00]} h6 {[%emt 0:01:04]} 54. h4 {[%emt 0:00:00]} Bb3 {[%emt 0:01:08]} 55. g5 {[%emt 0:00:00]} hxg5 {[%emt 0:00:32]} 56. hxg5 {[%emt 0:00:00]} Ke7 {[%emt 0:00:33]} 57. Rf6 {[%emt 0:00:00]} 1-0

[Event "Liberia Championship 2023"]
[Site "Monrovia"]
[Date "2024.01.25"]
[Round "10.2"]
[White "Kennedy Zinnah Kengo"]
[Black "David Leroy Debblay"]
[Result "0-1"]
[ECO "C42"]
[WhiteElo "1789"]
[BlackElo "1791"]
[Annotator "NA RC"]
[PlyCount "142"]
[EventDate "2024.01.16"]
[EventType "swiss"]
[EventCountry "LBR"]
[SourceTitle "playchess.com"]
[Source "ChessBase"]
[SourceQuality "1"]
[TimeControl "40/5400+30:1800+30"]

1. e4 {[%emt 0:06:34]} e5 {[%emt 0:00:23]} 2. Nf3 {[%emt 0:00:21]} Nf6 {[%emt 0:00:18]} 3. Nc3 {[%emt 0:00:29]} Bb4 {[%emt 0:00:24]} 4. Bc4 {[%emt 0:01:53]} d6 {[%emt 0:00:36]} 5. O-O {[%emt 0:00:18]} O-O {[%emt 0:01:43]} 6. Nd5 {[%emt 0:00:21]} Nxd5 {[%emt 0:00:21]} 7. Bxd5 {[%emt 0:00:30]} c6 {[%emt 0:00:15]} 8. Bb3 {[%emt 0:00:05]} Bg4 {[%emt 0:00:15]} 9. h3 {[%emt 0:00:38]} Bh5 {[%emt 0:00:42]} 10. c3 {[%emt 0:00:06]} Ba5 {[%emt 0:00:46]} 11. d4 {[%emt 0:00:22]} Nd7 {[%emt 0:00:27]} 12. Qd3 {[%emt 0:00:51]} Bg6 {[%emt 0:00:28]} 13. Bg5 {[%emt 0:00:56]} Qc7 {[%emt 0:00:37]} 14. Rfd1 {[%emt 0:00:33]} d5 {[%emt 0:01:16]} 15. Nd2 {[%emt 0:02:41]} exd4 {[%emt 0:01:39]} 16. cxd4 {[%emt 0:01:16]} Bxd2 {[%emt 0:01:52]} 17. Rxd2 {[%emt 0:00:08]} Bxe4 {[%emt 0:00:04]} 18. Qe2 {[%emt 0:00:13]} Rfe8 {[%emt 0:02:15]} 19. Qg4 {[%emt 0:00:18]} Bg6 {[%emt 0:00:27]} 20. h4 {[%emt 0:00:10]} h6 {[%emt 0:00:37]} 21. Bf4 {[%emt 0:01:33]} Qd8 {[%emt 0:00:45]} 22. Qg3 {[%emt 0:01:13]} Nf6 {[%emt 0:00:19]} 23. Qh3 {[%emt 0:01:52]} Qd7 {[%emt 0:07:13]} 24. Qxd7 {[%emt 0:00:35]} Nxd7 {[%emt 0:00:33]} 25. Bd1 {[%emt 0:00:09]} Re1+ {[%emt 0:00:32]} 26. Kh2 {[%emt 0:00:08]} Rae8 {[%emt 0:00:20]} 27. f3 {[%emt 0:00:51]} Nb6 {[%emt 0:03:38]} 28. b3 {[%emt 0:00:18]} Nc8 {[%emt 0:00:48]} 29. g4 {[%emt 0:00:26]} h5 {[%emt 0:00:39]} 30. Bg3 {[%emt 0:00:52]} R1e3 {[%emt 0:00:58]} 31. Bf2 {[%emt 0:00:41]} R3e7 {[%emt 0:00:46]} 32. Bg3 {[%emt 0:01:01]} hxg4 {[%emt 0:04:38]} 33. fxg4 {[%emt 0:00:16]} Re3 {[%emt 0:01:27]} 34. Rc1 {[%emt 0:01:54]} R3e6 {[%emt 0:02:13]} 35. g5 {[%emt 0:01:37]} Ne7 {[%emt 0:01:16]} 36. Bg4 {[%emt 0:01:25]} Bf5 {[%emt 0:00:20]} 37. Bf3 {[%emt 0:00:13]} Re3 {[%emt 0:00:38]} 38. Rf2 {[%emt 0:00:17]} Rd3 {[%emt 0:01:02]} 39. Re1 {[%emt 0:00:48]} Be6 {[%emt 0:00:25]} 40. Bh5 {[%emt 0:00:00]} g6 {[%emt 0:00:00]} 41. Be2 {[%emt 0:08:41]} Rxd4 {[%emt 0:02:22]} 42. h5 {[%emt 0:03:32]} gxh5 {[%emt 0:02:48]} 43. Bxh5 {[%emt 0:00:40]} Re4 {[%emt 0:00:47]} 44. Ref1 {[%emt 0:01:03]} Ng6 {[%emt 0:01:08]} 45. Rf6 {[%emt 0:01:39]} Kg7 {[%emt 0:01:16]} 46. Bf3 {[%emt 0:01:41]} Re3 {[%emt 0:00:57]} 47. Bf2 {[%emt 0:00:46]} Rd3 48. Bd1 {[%emt 0:01:36]} Rh8+ {[%emt 0:03:14]} 49. Kg1 {[%emt 0:01:33]} Ne5 {[%emt 1:28:33]} 50. Re1 {[%emt 0:02:38]} Nd7 {[%emt 0:00:00]} 51. Rf4 {[%emt 0:01:26]} c5 {[%emt 0:00:00]} 52. g6 {[%emt 0:01:09]} d4 {[%emt 0:00:00]} 53. gxf7 {[%emt 0:01:49]} Bxf7 {[%emt 0:00:00]} 54. Bf3 {[%emt 0:02:21]} Re8 {[%emt 0:00:00]} 55. Rxe8 {[%emt 0:01:30]} Bxe8 {[%emt 0:00:00]} 56. Bg2 {[%emt 0:01:02]} Rd1+ {[%emt 0:00:00]} 57. Kh2 {[%emt 0:00:32]} Rd2 {[%emt 0:00:00]} 58. Bh3 {[%emt 0:00:57]} Rxa2 {[%emt 0:00:00]} 59. Bxd7 {[%emt 0:00:59]} Bxd7 {[%emt 0:00:00]} 60. Kg3 {[%emt 0:00:44]} Ra3 {[%emt 0:00:00]} 61. Rf3 {[%emt 0:00:40]} Bc6 {[%emt 0:00:00]} 62. Rd3 {[%emt 0:00:42]} Bb5 {[%emt 0:00:00]} 63. Rf3 {[%emt 0:00:35]} Be2 {[%emt 0:00:00]} 64. Rf5 {[%emt 0:00:46]} Rxb3+ {[%emt 0:00:00]} 65. Kh4 {[%emt 0:00:56]} b6 {[%emt 0:00:00]} 66. Re5 {[%emt 0:00:40]} Bc4 {[%emt 0:00:00]} 67. Re7+ {[%emt 0:00:37]} Kf6 {[%emt 0:00:00]} 68. Rxa7 {[%emt 0:00:42]} Be6 {[%emt 0:00:00]} 69. Bg3 {[%emt 0:00:38]} d3 {[%emt 0:00:00]} 70. Ra8 {[%emt 0:00:49]} Rb4+ {[%emt 0:00:00]} 71. Kh5 {[%emt 0:01:21]} d2 {[%emt 0:00:00]} 0-1

[Event "Liberia Championship 2023"]
[Site "Monrovia"]
[Date "2024.01.25"]
[Round "10.3"]
[White "Barcon, Harmon"]
[Black "Bobby Ballah"]
[Result "1-0"]
[ECO "B38"]
[WhiteElo "1902"]
[BlackElo "1913"]
[Annotator "TA"]
[PlyCount "55"]
[EventDate "2024.01.16"]
[EventType "swiss"]
[EventCountry "LBR"]
[SourceTitle "playchess.com"]
[Source "ChessBase"]
[SourceQuality "1"]
[TimeControl "40/5400+30:1800+30"]

{[%evp 22,55,51,60,66,57,154,166,133,63,128,118,127,94,215,227,261,275,268,261,404,389,486,462,479,448,460,318,679,664,965,956,919,935,913,883]} 1. e4 {[%emt 0:00:03]} c5 {[%emt 0:00:41]} 2. Nf3 {[%emt 0:00:09]} Nc6 {[%emt 0:00:09]} 3. d4 {[%emt 0:00:21]} cxd4 {[%emt 0:00:04]} 4. Nxd4 {[%emt 0:00:08]} g6 {[%emt 0:00:04]} 5. c4 {[%emt 0:01:35]} Bg7 {[%emt 0:00:07]} 6. Be3 {[%emt 0:00:07]} Nf6 {[%emt 0:00:08]} 7. Nc3 {[%emt 0:00:11]} O-O {[%emt 0:00:19]} 8. Be2 {[%emt 0:00:14]} d6 {[%emt 0:02:26]} 9. O-O {[%emt 0:00:12]} Bd7 {[%emt 0:02:01]} 10. h3 {[%emt 0:00:11]} Rc8 {[%emt 0:01:32]} 11. Qd2 {[%emt 0:01:15]} a6 {[%emt 0:01:17]} 12. Rad1 {[%emt 0:00:31]} Ne5 {[%emt 0:02:44]} 13. b3 {[%emt 0:00:22]} Bc6 {[%emt 0:00:32]} (13... Nc6 $14) 14. f4 $16 {[%emt 0:00:52][%cal Bf2f4,Bf4e5][%mdl 32]} Ned7 {[%emt 0:00:54] Weiß steht deutlich besser.} 15. Bd3 {[%emt 0:00:59] Weiß steht aktiver.} (15. Nxc6 $16 bxc6 16. g4) 15... Nc5 {[%emt 0:12:03]} (15... Qc7 $14) 16. Nxc6 {[%emt 0:00:27]} Rxc6 {[%emt 0:00:05]} 17. Bb1 {[%emt 0:00:34]} Qc8 {[%emt 0:05:41] [#] Das Aus für Schwarz.} (17... Qb8 $16) 18. e5 $1 $18 {[%emt 0:08:50]} dxe5 {[%emt 0:21:57]} 19. fxe5 {[%emt 0:00:03]} Nh5 {[%emt 0:00:16]} 20. Nd5 {[%emt 0:01:45]} Qe6 {[%emt 0:10:56]} (20... Re6 $142 21. Qb4 Nd7 22. Nxe7+ Rxe7) 21. Qf2 {[%emt 0:04:34]} Nd7 {[%emt 0:10:03]} 22. g4 {[%emt 0:00:18][%cal Bg2g4,Bg4h5,Bh5h6][%mdl 32]} Nxe5 {[%emt 0:00:48]} 23. gxh5 {[%emt 0:00:14]} Qxh3 {[%emt 0:00:50]} 24. Qg2 {[%emt 0:01:33] Wehrt Ng4 ab} Qe6 {[%emt 0:03:13] [#]} (24... Qxg2+ 25. Kxg2 Re6) 25. h6 {[%emt 0:03:14] Weiß steht klar auf Gewinn.} Bf6 {[%emt 0:01:35]} 26. Bf5 {[%emt 0:01:34]} Qd6 {[%emt 0:02:13]} 27. Nxf6+ {[%emt 0:02:28]} Qxf6 {[%emt 0:02:59]} 28. Bg5 {[%emt 0:00:43] Gewichteter Fehlerwert: Weiß=0.23 (präzise) /Schwarz=1.07.  Fehler:       	Weiß=1     	Schwarz=5     Ungenau:       	Weiß=1     	Schwarz=1     OK:         	Weiß=5     	Schwarz=4     Bester:       	Weiß=2     	---        Stark:        	Weiß=1     	---} 1-0

[Event "Liberia Championship 2023"]
[Site "Monrovia"]
[Date "2024.01.25"]
[Round "10.5"]
[White "Arnold Smith"]
[Black "Foday W. Kondoh"]
[Result "1-0"]
[ECO "B00"]
[WhiteElo "1844"]
[BlackElo "1785"]
[Annotator "NA RC"]
[PlyCount "81"]
[EventDate "2024.01.16"]
[EventType "swiss"]
[EventCountry "LBR"]
[SourceTitle "playchess.com"]
[Source "ChessBase"]
[SourceQuality "1"]
[TimeControl "40/5400+30:1800+30"]

1. e4 {[%emt 0:02:54]} Nc6 {[%emt 0:02:18]} 2. d4 {[%emt 0:00:47]} d5 {[%emt 0:00:23]} 3. Nc3 {[%emt 0:00:57]} dxe4 {[%emt 0:01:06]} 4. d5 {[%emt 0:00:07]} Ne5 {[%emt 0:00:30]} 5. Nxe4 {[%emt 0:06:23]} e6 {[%emt 0:00:29]} 6. Bb5+ {[%emt 0:02:24] B00: Damenfianchetto, Nimzowitsch-Verteidigung.} c6 {[%emt 0:00:43]} 7. dxc6 {[%emt 0:00:08]} Qxd1+ {[%emt 0:00:26]} 8. Kxd1 {[%emt 0:00:05]} bxc6 {[%emt 0:00:17]} 9. Ba4 {[%emt 0:00:45]} Bb7 {[%emt 0:04:00]} 10. Be3 {[%emt 0:04:45]} Nc4 {[%emt 0:02:12]} 11. Bc1 {[%emt 0:01:28]} Nb6 {[%emt 0:00:39]} 12. Bb3 {[%emt 0:00:41]} c5 {[%emt 0:00:25]} 13. f3 {[%emt 0:04:01]} Rd8+ {[%emt 0:01:51]} 14. Ke1 {[%emt 0:00:21]} c4 {[%emt 0:00:13]} 15. Be3 {[%emt 0:00:16]} cxb3 {[%emt 0:00:31]} 16. axb3 {[%emt 0:00:06]} Bxe4 {[%emt 0:05:40]} 17. fxe4 {[%emt 0:00:10]} Rd7 {[%emt 0:00:22]} 18. Nf3 {[%emt 1:13:12]} f6 {[%emt 0:04:39]} 19. Ra6 {[%emt 0:00:00]} e5 {[%emt 0:12:08]} 20. Bxb6 {[%emt 0:00:00]} axb6 {[%emt 0:00:10]} 21. Rxb6 {[%emt 0:00:00]} Be7 {[%emt 0:01:32]} 22. Ke2 {[%emt 0:00:00]} Bd8 {[%emt 0:02:48]} 23. Ra6 {[%emt 0:00:00]} Ne7 {[%emt 0:00:49]} 24. b4 {[%emt 0:00:00]} Kf7 {[%emt 0:01:04]} 25. c4 {[%emt 0:00:00]} (25. c3 $142) 25... Re8 {[%emt 0:01:56]} ({Black should play} 25... Ng6 $19 26. g3 Be7) 26. b5 {[%emt 0:00:00]} ({Better is} 26. Rha1) 26... Nc8 {[%emt 0:01:34]} 27. b4 {[%emt 0:00:00]} Nd6 {[%emt 0:05:03]} 28. Nd2 {[%emt 0:00:00] [#]} Re6 {[%emt 0:11:47]} ({Better is} 28... Be7 $1 $17 29. Rha1 (29. b6 Red8 $17) 29... Red8) 29. Rha1 {[%emt 0:00:00]} Nc8 {[%emt 0:01:00]} (29... Rb7 $11) 30. Rxe6 {[%emt 0:00:00]} Kxe6 {[%emt 0:00:10]} 31. Ra6+ {[%emt 0:00:00]} Rd6 {[%emt 0:01:06]} 32. c5 {[%emt 0:00:00]} Rxa6 {[%emt 0:02:04]} 33. bxa6 {[%emt 0:00:00]} Na7 {[%emt 0:00:21]} 34. Kd3 {[%emt 0:00:00]} Kd7 {[%emt 0:00:35]} 35. Kc4 {[%emt 0:00:00]} Kc6 {[%emt 0:01:01]} 36. Nb1 {[%emt 0:00:00]} Bc7 {[%emt 0:01:56]} 37. Nc3 {[%emt 0:00:00]} Bb8 {[%emt 0:04:42]} 38. b5+ {[%emt 0:00:00]} Kd7 {[%emt 0:00:21]} 39. b6 {[%emt 0:00:00]} Nc8 {[%emt 0:00:29]} 40. Nb5 $18 {[%emt 0:00:00]} Kc6 {[%emt 0:00:00]} 41. a7 {[%emt 0:00:00]} 1-0